Cogmind - Beta 15 @@@ ROGUE MODE // 2025.08.03 @ 15:38:21 Player: Florist Result: Destroyed by H-77 Assassin with Coil Gun Performance ------------- Evolutions (7) 3500 Regions Visited (19) 3800 Robots Destroyed (214) 1070 Value Destroyed (8858) 8858 Prototype IDs (12) 240 Alien Tech Used (0) 0 Bonus (4293) 4293 TOTAL SCORE: 21761 Bonus ------- High Alert Combat Kills 1501 Follower Combat Kills 292 Entered Garrisons 1000 Used RIF Installer 1500 Cogmind --------- Core Integrity 0/1300 Matter 300/300 Energy 100/100 System Corruption 31% Temperature Cool (0) Movement Core (50) Location -3/Research Parts ------- > --- POWER (1) -------- (None) > --- PROPULSION (8) --- (None) > --- UTILITY (8) ------ Advanced Signal Interpreter > --- WEAPON (4) ------- (None) > --- INVENTORY (5) ---- Micro Antimatter Reactor Micro Antimatter Reactor Compact Particle Reactor Experimental Matter Compressor (25) Linear Accelerator Peak State ------------ > --- POWER ------------ Micro Antimatter Reactor > --- PROPULSION ------- Biometal Medium Treads Biometal Medium Treads Thunder Leg Thunder Leg Thunder Leg Thunder Leg Thunder Leg > --- UTILITY ---------- Medium Storage Unit Advanced Signal Interpreter Relay Coupler [NC] > --- WEAPON ----------- Gamma Rifle Mini Smartbomb Launcher Mini Smartbomb Launcher > --- INVENTORY -------- Micro Antimatter Reactor Micro Antimatter Reactor Compact Particle Reactor Experimental Matter Compressor Gravity Neutralizer [Rating: 87] Favorites ----------- Power Light Nuclear Core Engine Light Ion Engine Power Core Light Nuclear Core Reactor Micro Antimatter Reactor Propulsion Light Treads Treads Light Treads Leg Titanium Leg Wheel Compact Wheel Flight Unit Improved VTOL Module Utility Improved Targeting Computer Device Seismic Detector Storage Huge Storage Unit Processor Improved Targeting Computer Hackware Relay Coupler [Grunt] Protection Improved Medium Armor Plating Weapon Enhanced Autogun Energy Gun Small Laser Ballistic Gun Enhanced Autogun Ballistic Cannon Linear Accelerator Launcher Mini Grenade Launcher Special Weapon Remote Datajack Impact Weapon Power Maul Slashing Weapon Greatsword Special Melee Weapon Datajack Build | -11 -10 -9 -8 -8 -8 -7 -7 -7 -6 -6 -6 -5 -5 -4 -4 -4 -4 -4 -3 ------- Run | Yrd Mat Mat Mat Gar Mat Fac Gar Fac Fac Gar Fac Fac Gar Fac Gar Fac Upp Upp Res Slots Evolved 14 | . . 2 2 . . 2 . . 2 . . 2 . 2 . . . . 2 Power . | . . . . . . . . . . . . . . . . . . . . Propulsion 6 | . . 1 1 . . . . . 2 . . . . 1 . . . . 1 Utility 6 | . . 1 . . . 1 . . . . . 2 . 1 . . . . 1 Weapon 2 | . . . 1 . . 1 . . . . . . . . . . . . . Parts Attached 160 | 7 8 5 19 8 20 4 21 16 10 . 1 10 . 2 . 4 . . 25 Power 14 | 1 1 1 1 1 1 . 2 1 1 . 1 . . 1 . 1 . . 1 Engine 6 | 1 . 1 1 . . . 1 1 . . 1 . . . . . . . . Core 6 | . 1 . . 1 1 . 1 . 1 . . . . . . 1 . . . Reactor 2 | . . . . . . . . . . . . . . 1 . . . . 1 Propulsion 59 | 2 3 2 9 3 7 1 7 8 5 . . 2 . . . 1 . . 9 Treads 28 | 2 2 2 7 3 7 . 3 . . . . . . . . . . . 2 Leg 14 | . . . . . . 1 4 3 . . . . . . . . . . 6 Wheel 6 | . 1 . . . . . . 5 . . . . . . . . . . . Hover . | . . . . . . . . . . . . . . . . . . . . Flight 11 | . . . 2 . . . . . 5 . . 2 . . . 1 . . 1 Utility 36 | 2 1 2 3 1 3 1 5 3 2 . . 5 . 1 . 2 . . 5 Device 10 | 1 . . 1 . . . . . 1 . . 3 . . . 2 . . 2 Storage 5 | 1 1 . 1 . . . . . . . . 1 . . . . . . 1 Processor 5 | . . 1 . . 1 . . . 1 . . 1 . . . . . . 1 Hackware 10 | . . . . . . 1 4 3 . . . . . 1 . . . . 1 Protection 6 | . . 1 1 1 2 . 1 . . . . . . . . . . . . Artifact . | . . . . . . . . . . . . . . . . . . . . Weapon 51 | 2 3 . 6 3 9 2 7 4 2 . . 3 . . . . . . 10 Energy Gun 5 | . 2 . . . . . . . . . . 1 . . . . . . 2 Energy Cannon . | . . . . . . . . . . . . . . . . . . . . Ballistic Gun 32 | 2 1 . 6 1 7 1 5 4 . . . . . . . . . . 5 Ballistic Cannon 1 | . . . . . . . . . . . . . . . . . . . 1 Launcher 6 | . . . . 2 2 . . . . . . . . . . . . . 2 Special Weapon 3 | . . . . . . . 1 . 1 . . 1 . . . . . . . Impact Weapon 1 | . . . . . . . . . 1 . . . . . . . . . . Slashing Weapon 2 | . . . . . . . 1 . . . . 1 . . . . . . . Piercing Weapon . | . . . . . . . . . . . . . . . . . . . . Special Melee Weapon 1 | . . . . . . 1 . . . . . . . . . . . . . Unidentified Prototypes 10 | . . . 3 . 1 . . . . . . 3 . . . . . . 3 Corrupted Parts 2 | . . . . . . . . . . . . . . . . . . . 2 System Corruption 14 | . . . . . . . . . . . . . . . . . . . 14 Parts Lost 96 | . 6 . 5 5 7 1 19 13 . 3 1 . . . 6 1 3 . 26 Power 11 | . 2 . 1 1 1 . 2 1 . 1 . . . . 1 . . . 1 Propulsion 40 | . 2 . 2 3 4 1 6 8 . 1 . . . . 3 1 . . 9 Utility 18 | . . . 1 1 2 . 3 . . . 1 . . . . . 3 . 7 Weapon 27 | . 2 . 1 . . . 8 4 . 1 . . . . 2 . . . 9 Highest Loss Streak 16 | . 2 . 5 2 7 1 6 3 . 3 1 . . . 6 1 3 . 16 To Critical Strikes . | . . . . . . . . . . . . . . . . . . . . Average Backups 17 | 2 14 18 20 22 24 22 21 23 7 5 5 4 5 5 5 4 5 5 5 Power . | . 1 1 . . . . . . . . . . . . . . . . 2 Propulsion 1 | . 2 2 2 1 1 1 1 5 . . . . . . . . . . . Utility 11 | . 8 9 9 14 16 14 14 15 6 5 5 4 5 5 5 4 5 5 1 Weapon 4 | . 2 5 7 6 5 6 4 2 . . . . . . . . . . . Tool/Special . | . . . . . . . . . . . . . . . . . . . . Unused Backups 36 | . 1 1 12 2 7 . . 1 7 . 1 . . . . . . . 4 Power 4 | . . . . . . . . . . . . . . . . . . . 4 Propulsion 1 | . . . . . . . . 1 . . . . . . . . . . . Utility 19 | . 1 . 7 1 2 . . . 7 . 1 . . . . . . . . Weapon 12 | . . 1 5 1 5 . . . . . . . . . . . . . . Tool/Special . | . . . . . . . . . . . . . . . . . . . . Average Slot Usage (%) 86 | . 93 95 99 93 91 79 88 77 77 76 65 78 88 78 75 49 52 36 37 Engine 4 | . 4 7 8 2 . . 5 4 5 . 5 5 5 5 . . . . . Core 3 | . 7 . . 4 8 7 1 . . 5 . . . . . . 5 5 . Treads 20 | . 25 33 35 32 26 12 13 2 . . . . . . . . . . 3 Leg 3 | . . . . . . . 11 17 . . . . . . . . . . 6 Wheel 1 | . . . . . 2 7 1 3 . . . . . . . . . . . Flight 2 | . . . . . . . . . 31 32 26 30 35 31 28 19 15 15 2 Device 3 | . 14 1 4 . . . . . 5 6 6 8 11 10 10 14 21 10 3 Storage 7 | . 14 11 9 9 9 7 7 7 . . . . . . . . . . 2 Processor 6 | . . 10 9 9 9 7 7 1 5 6 6 11 11 10 10 10 10 5 4 Hackware 4 | . . . . . . 2 10 15 13 13 13 11 11 10 15 4 . . 2 Protection 3 | . . 9 4 8 9 7 2 . . . . . . . . . . . . Energy Gun 2 | . 11 22 . . . . . . . . . . . . . . . . 1 Ballistic Gun 19 | . 13 . 25 26 26 23 23 16 . . . . . . . . . . . Peak Build Rating 87 | 7 11 14 32 31 32 32 41 48 44 44 36 67 65 70 70 52 48 39 87 Average Rating 27 | 6 9 12 23 29 28 25 31 34 41 41 35 56 65 67 57 40 47 39 48 On Entrance 33 | . 7 8 14 29 31 24 32 38 22 44 31 35 65 65 70 34 48 39 39 Naked Turns . | . . . . . . . . . . . . . . . . . . . . Heaviest Build 109 | 13 50 50 99 102 102 104 109 106 93 14 13 20 20 23 23 14 14 12 32 Greatest Support 143 | 40 40 63 83 83 80 16 60 60 25 25 20 44 32 32 32 22 17 17 143 Greatest Overweight (x) 32 | . 3 . 1 1 32 6 6 31 3 . . . . . . 1 . . 6 Average Overweight (x) . | . 1 . . 1 1 6 2 2 . . . . . . . . . . . Largest Inventory Capacity 25 | 8 20 20 25 25 25 25 25 25 25 5 5 10 5 5 5 5 5 5 10 Average Capacity 20 | 7 19 20 23 25 25 25 25 25 6 5 5 5 5 5 5 5 5 5 8 Most Carried 25 | 3 19 20 25 25 25 24 24 25 24 5 5 5 5 5 5 5 5 5 8 Average Carried 17 | 2 14 18 20 22 24 22 21 23 6 5 5 4 5 4 5 4 5 5 5 Final Capacity 25 | 8 20 20 25 25 25 25 25 25 5 5 5 5 5 5 5 5 5 5 5 Final Carried 25 | 3 19 20 24 25 22 21 24 25 5 5 5 5 5 5 5 5 5 5 5 Class Distribution -------------------- 31% | Scavenger-Gunner 17% | Mutant 16% | Bothacker-Gunner 15% | Gunner 8% | Scavenger-Mutant Dominant Class ---------------- Scavenger-Mutant | -10/Materials Mutant | -9/Materials Gunner | -8/Materials Scavenger-Gunner | -8/Garrison Scavenger-Gunner | -8/Materials Gunner | -7/Factory Bothacker-Gunner | -7/Garrison Bothacker-Gunner | -7/Factory Bothacker-Sprinter | -6/Factory Bothacker-Sprinter | -6/Garrison Sprinter | -6/Factory Scout | -5/Factory Bothacker-Scout | -5/Garrison Bothacker-Scout | -4/Factory Scout | -4/Garrison Mutant | -4/Factory Scout | -4/Upper Caves Sprinter | -4/Upper Caves Mutant | -3/Research Resources | -11 -10 -9 -8 -8 -8 -7 -7 -7 -6 -6 -6 -5 -5 -4 -4 -4 -4 -4 -3 ----------- Run | Yrd Mat Mat Mat Gar Mat Fac Gar Fac Fac Gar Fac Fac Gar Fac Gar Fac Upp Upp Res Matter Collected 6839 | 456 422 50 684 912 997 173 1019 640 244 15 15 82 . . . . . . 1130 Remotely . | . . . . . . . . . . . . . . . . . . . . Salvage Created 7313 | 257 763 199 946 757 1547 159 636 576 23 70 170 119 . . . . . . 1091 Parts 383 | 21 49 10 52 38 77 6 32 24 . 1 6 8 . . . . . . 59 Haulers Intercepted 11 | . 2 . 3 . 3 . . 1 . . 1 1 . . . . . . . Recyclers Shooed 6 | 1 1 . . . . . . 2 . . . . . . . . . . 2 Parts Field Recycled . | . . . . . . . . . . . . . . . . . . . . Retrieved Matter . | . . . . . . . . . . . . . . . . . . . . Parts Self-Destructed . | . . . . . . . . . . . . . . . . . . . . Prevented 2 | . . . . . . . . . . . . . . . . . 2 . . Kills | -11 -10 -9 -8 -8 -8 -7 -7 -7 -6 -6 -6 -5 -5 -4 -4 -4 -4 -4 -3 ------- Run | Yrd Mat Mat Mat Gar Mat Fac Gar Fac Fac Gar Fac Fac Gar Fac Gar Fac Upp Upp Res Combat Hostiles Destroyed 137 | . 16 4 21 19 32 1 16 9 . 2 . . . . . . . . 17 Guns 104 | . 16 4 21 16 22 1 16 7 . . . . . . . . . . 1 Cannons 1 | . . . . . . . . . . . . . . . . . . . 1 AOE 28 | . . . . 3 10 . . 2 . . . . . . . . . . 13 Classes Destroyed 19 | 2 7 2 1 4 2 . 1 . . . . . . . . . . . . Worker 11 | . 2 . . . 1 . . 1 . . 2 . . . . . . . 5 Builder 12 | . . . . . 1 . . . . . 1 2 . . . . . . 8 Tunneler 12 | 9 . . . . . . . 2 . . . . . . . . . . 1 Hauler 11 | . 2 . 3 . 3 . . 1 . . 1 1 . . . . . . . Recycler 11 | 1 1 . . . 1 1 . 3 . . . . . . . . . . 4 Mechanic 5 | . . 1 . . 2 . . . 1 . . . . . . . . . 1 Operator 6 | . 2 1 1 . . 1 . . . . 1 . . . . . . . . Watcher 9 | . 3 . 4 . 1 . . . . . . 1 . . . . . . . Swarmer 38 | . 8 . 10 . 3 . 4 3 . 1 . . . . . . . . 9 Cutter 3 | . . . . 2 . . 1 . . . . . . . . . . . . Grunt 46 | . 6 3 5 7 17 1 4 3 . . . . . . . . . . . Brawler 5 | . . . . 1 4 . . . . . . . . . . . . . . Duelist 3 | . . . . 1 2 . . . . . . . . . . . . . . Protector 1 | . . . . . 1 . . . . . . . . . . . . . . Sentry 18 | . . 1 5 4 2 . 4 1 . 1 . . . . . . . . . Specialist 1 | . . . . . . . 1 . . . . . . . . . . . . Hunter 7 | . . . 1 1 3 . . . . . . . . . . . . . 2 Programmer 13 | . . . . 3 . . 2 2 . . . . . . . . . . 6 Subdweller 2 | . 2 . . . . . . . . . . . . . . . . . . Best Kill Streak 22 | 2 4 2 4 4 22 2 5 5 1 1 2 1 . . . . . . 11 Combat Bots Only 18 | . 4 2 4 4 18 1 5 3 . 1 . . . . . . . . 5 Max Kills in Single Turn 8 | 1 2 1 2 2 8 1 1 2 1 1 1 1 . . . . . . 3 Gunslinging 1 | . 1 . 1 . . . . . . . . . . . . . . . . Exploded 5 | . . . . 2 5 . . 2 . . . . . . . . . . 2 Melee . | . . . . . . . . . . . . . . . . . . . . Uniques/NPCs Destroyed . | . . . . . . . . . . . . . . . . . . . . Combat | -11 -10 -9 -8 -8 -8 -7 -7 -7 -6 -6 -6 -5 -5 -4 -4 -4 -4 -4 -3 -------- Run | Yrd Mat Mat Mat Gar Mat Fac Gar Fac Fac Gar Fac Fac Gar Fac Gar Fac Upp Upp Res Hostile Shots Fired 1450 | . 135 24 86 91 133 9 272 163 24 94 26 16 27 . 52 6 11 . 281 Missed 487 | . 48 5 15 23 30 . 83 50 15 47 19 5 17 . 22 3 6 . 99 Hits 963 | . 87 19 71 68 103 9 189 113 9 47 7 11 10 . 30 3 5 . 182 Melee 13 | . . . . 5 4 . 3 . . . . . . . . . 1 . . Projectile 950 | . 87 19 71 63 99 9 186 113 9 47 7 11 10 . 30 3 4 . 182 AOE 2 | . . . . 1 . . 1 . . . . . . . . . . . . Critical Strikes 26 | . . 1 4 2 2 . 4 1 . . . . . . 1 . . . 11 Part Disruptions 1 | . . . . . . . . . . . . . . . . . . . 1 Damage Taken 14799 | . 1066 228 1010 1266 1614 152 2133 1389 58 541 76 182 171 . 479 56 140 . 4238 Core 2920 | . 191 26 60 59 203 30 212 251 15 218 19 35 56 . 178 . 44 . 1323 Absorbed by Shields 48 | . . . . . . . . . . 15 . . 27 . 6 . . . . Regen/Repaired (Parts) 207 | . . 63 . . 110 . . . . . . 34 . . . . . . . Core Remaining (%) 65 | 100 23 93 . . 41 . . 29 . . 70 . 90 . . . . 80 . Volleys Fired 556 | 31 80 21 69 76 68 7 69 60 3 2 . 2 . . . . . . 68 Largest 4 | 2 2 2 3 3 3 3 4 3 1 1 . 1 . . . . . . 2 Hottest 107 | 40 80 80 100 78 90 69 107 90 5 5 . 7 . . . . . . 80 Shots Fired 1282 | 62 158 42 204 189 204 21 214 102 3 2 . 2 . . . . . . 79 Gun 1208 | 62 158 42 204 187 195 21 207 79 . . . . . . . . . . 53 Cannon 1 | . . . . . . . . . . . . . . . . . . . 1 Launcher 42 | . . . . 2 9 . 2 4 . . . . . . . . . . 25 Special 31 | . . . . . . . 5 19 3 2 . 2 . . . . . . . Kinetic 1073 | 62 123 . 177 187 195 21 207 79 . . . . . . . . . . 22 Thermal 104 | . 35 42 27 . . . . . . . . . . . . . . . . Explosive 42 | . . . . 2 9 . 2 4 . . . . . . . . . . 25 Electromagnetic 32 | . . . . . . . . . . . . . . . . . . . 32 Robot Hit Streak 28 | 13 10 28 14 11 19 11 17 14 3 2 . 3 . . . . . . 10 Robot Miss Streak 12 | 5 6 2 5 4 5 2 6 12 1 . . . . . . . . . 5 Penetration Max 1 | . . . . 1 1 . . . . . . . . . . . . . . Secondary Targets 20 | . 3 . 3 7 3 . 3 1 . . . . . . . . . . . Max Gunslinging Chain 1 | . 1 . 1 1 1 . 1 1 . . . . . . . . . . . Shots Hit Robots 814 | 42 93 35 138 90 133 22 136 53 3 7 6 6 . . 2 . . . 48 Core Hits 407 | 11 45 12 52 38 81 6 65 37 . 1 1 . . . . . . . 58 Critical Kills 4 | . . . 1 1 1 . . . . . 1 . . . . . . . . Critical Parts Destroyed 8 | . 2 . . . 1 . . . 1 2 1 1 . . . . . . . Critical Strikes 12 | . 2 . 1 1 2 . . . 1 2 2 1 . . . . . . . Destroy 6 | . 2 . 1 1 2 . . . . . . . . . . . . . . Smash 6 | . . . . . . . . . 1 2 2 1 . . . . . . . Melee Attacks 78 | . . . . . . 8 11 . 1 23 12 16 3 . 4 . . . . Impact 42 | . . . . . . . . . 1 23 12 6 . . . . . . . Slashing 18 | . . . . . . . 1 . . . . 10 3 . 4 . . . . Piercing . | . . . . . . . . . . . . . . . . . . . . Sneak Attacks 13 | . . . . . . 4 . . 1 . 4 4 . . . . . . . Combat Hostiles 4 | . . . . . . 4 . . . . . . . . . . . . . Follow-up Attacks 1 | . . . . . . . . . . . . 1 . . . . . . . Damage Inflicted 19609 | 542 1166 387 2057 2158 3773 219 2222 925 120 231 523 458 . . 96 . . . 4732 Guns 11956 | 542 1157 387 2057 1772 2160 219 2183 772 . . . . . . . . . . 707 Cannons 57 | . . . . . . . . . . . . . . . . . . . 57 Explosions 5999 | . . . . 386 1613 . 39 121 . . . . . . . . . . 3840 Melee 1428 | . . . . . . . . . 120 231 523 458 . . 96 . . . . Ramming 169 | . 9 . . . . . . 32 . . . . . . . . . . 128 Kinetic 10731 | 542 904 . 1860 1772 2160 219 2183 772 . . . . . . . . . . 319 Thermal 1155 | . 253 387 197 . . . . . . . . . . . . . . . 318 Explosive 5681 | . . . . 386 1613 . 39 121 . . . . . . . . . . 3522 Electromagnetic 445 | . . . . . . . . . . . . . . . . . . . 445 Impact 1145 | . . . . . . . . . 120 231 523 271 . . . . . . . Slashing 283 | . . . . . . . . . . . . 187 . . 96 . . . . Piercing . | . . . . . . . . . . . . . . . . . . . . Highest Corruption 31 | . . . . . 3 . 1 3 . . . . . . . . 10 10 31 Average Corruption 3 | . . . . . 3 . 1 1 . . . . . . . . 10 10 15 Corruption Purged . | . . . . . . . . . . . . . . . . . . . . Corruption Blocked . | . . . . . . . . . . . . . . . . . . . . Effects 75 | . . . . . 9 . 23 11 . . . . . . . . 1 . 31 Message Errors 15 | . . . . . 1 . 7 3 . . . . . . . . 1 . 3 Matter Fused 15 | . . . . . 1 . 4 1 . . . . . . . . . . 9 Heat Flow Errors 5 | . . . . . 1 . 1 1 . . . . . . . . . . 2 Energy Discharges 10 | . . . . . 1 . 3 2 . . . . . . . . . . 4 Parts Rejected 1 | . . . . . 1 . . . . . . . . . . . . . . Parts Fused 1 | . . . . . . . . . . . . . . . . . . . 1 Data Loss (minor) 6 | . . . . . 2 . 2 1 . . . . . . . . . . 1 Data Loss (major) 5 | . . . . . 1 . 1 2 . . . . . . . . . . 1 Misfires 4 | . . . . . . . 1 1 . . . . . . . . . . 2 Alerts 6 | . . . . . 1 . 3 . . . . . . . . . . . 2 Misdirections 6 | . . . . . . . . . . . . . . . . . . . 6 Weapon Failures 1 | . . . . . . . 1 . . . . . . . . . . . . Overload Shots . | . . . . . . . . . . . . . . . . . . . . Overflow Damage 1147 | . . . . . 18 . . . 120 121 324 354 . . 4 . . . 206 Projectiles . | . . . . . . . . . . . . . . . . . . . . Explosions 221 | . . . . . 18 . . . . . . . . . . . . . 203 Melee 926 | . . . . . . . . . 120 121 324 354 . . 4 . . . 3 Knockbacks 3 | . . . . . . . . . 1 1 1 . . . . . . . . Impact 3 | . . . . . . . . . 1 1 1 . . . . . . . . Kinetic . | . . . . . . . . . . . . . . . . . . . . Secondary . | . . . . . . . . . . . . . . . . . . . . Self-Inflicted Damage 491 | . . . . 42 154 . 41 . . . . . . . . . . . 254 Shots 12 | . . . . 1 6 . 1 . . . . . . . . . . . 4 Rammed 28 | . 1 . . . . . . . . . . . . . . . . . 27 Targets Rammed 40 | . 1 . . . . . . 9 . . . . . . . . . . 30 Kicked 12 | . . . . . . . . 9 . . . . . . . . . . 3 Crushed . | . . . . . . . . . . . . . . . . . . . . Highest Temperature 382 | 6 114 117 375 382 303 58 294 147 6 3 2 7 7 . 4 . . . 150 Average Temperature 80 | 6 26 40 114 95 104 29 71 48 3 1 2 4 6 . 4 . . . 18 Received Heat Transfer 3021 | . 348 123 477 306 585 90 594 246 24 39 12 18 27 . 57 21 42 . 12 Effects 3 | . . . 3 . . . . . . . . . . . . . . . . Energy Bleed 1 | . . . 1 . . . . . . . . . . . . . . . . Short Circuit 1 | . . . 1 . . . . . . . . . . . . . . . . Damage (minor) 1 | . . . 1 . . . . . . . . . . . . . . . . Siege Activations . | . . . . . . . . . . . . . . . . . . . . Martial Activations . | . . . . . . . . . . . . . . . . . . . . Shielding Activations . | . . . . . . . . . . . . . . . . . . . . Robots Disrupted . | . . . . . . . . . . . . . . . . . . . . Combat Hostiles . | . . . . . . . . . . . . . . . . . . . . Robots Corrupted 9 | . . . . . . . . . 1 2 3 1 . . . . . . 2 Combat Hostiles 4 | . . . . . . . . . . 2 . . . . . . . . 2 Parts Fried 8 | . . . . . . . . . . 2 3 . . . . . . . 3 Impact Corruptions 29 | . . . . . . . . . 5 4 12 6 . . . . . . 2 Robots Melted . | . . . . . . . . . . . . . . . . . . . . Combat Hostiles . | . . . . . . . . . . . . . . . . . . . . Parts Melted 6 | . 3 2 1 . . . . . . . . . . . . . . . . Heat Transferred 2100 | . 575 875 450 . . . . . . . . . . . . . . . 200 Parts Sabotaged . | . . . . . . . . . . . . . . . . . . . . Parts Stolen . | . . . . . . . . . . . . . . . . . . . . Parts Stripped . | . . . . . . . . . . . . . . . . . . . . Power Chain Reactions 1 | . . . . . . . . . . . . . . . . . . . 1 Alert | -11 -10 -9 -8 -8 -8 -7 -7 -7 -6 -6 -6 -5 -5 -4 -4 -4 -4 -4 -3 ------- Run | Yrd Mat Mat Mat Gar Mat Fac Gar Fac Fac Gar Fac Fac Gar Fac Gar Fac Upp Upp Res Maximum Alert Level 5 | . 1 . 1 5 4 2 4 3 1 1 1 . 1 . . . . . 2 Low Security (%) 39 | 100 94 100 98 1 . . . . 22 59 66 100 42 100 100 100 . . 48 Level 1 8 | . 5 . 1 11 . . 7 . 77 40 33 . 57 . . . . . 41 Level 2 21 | . . . . 18 . 100 43 87 . . . . . . . . . . 9 Level 3 17 | . . . . 29 67 . 31 12 . . . . . . . . . . . Level 4 9 | . . . . 20 32 . 17 . . . . . . . . . . . . Level 5 3 | . . . . 19 . . . . . . . . . . . . . . . High Security . | . . . . . . . . . . . . . . . . . . . . Max Security . | . . . . . . . . . . . . . . . . . . . . Peak Influence 1976 | 10 235 44 245 1976 1414 598 1421 749 272 312 226 119 282 147 179 88 . . 455 Initial 963 | . . 44 . 157 963 598 314 745 272 123 147 105 77 147 102 88 . . . Average 512 | . 88 15 44 999 1110 529 726 601 228 189 188 98 170 147 143 66 . . 223 Influence Increases 7939 | 50 531 120 713 1889 933 51 1397 424 5 229 169 126 205 . 127 15 60 . 895 Destroy 0b10 Robot/C 2840 | . 280 80 420 440 620 40 380 200 . 40 . . . . . . . . 340 Destroy 0b10 Robot/NC 400 | 50 50 10 40 10 50 10 . 35 5 . 25 20 . . . . . . 95 Destroy Leader 540 | . 70 30 114 40 148 . 20 52 . . 2 4 . . . . . . 60 Allied During Kill 27 | . . . . 5 5 1 14 2 . . . . . . . . . . . Trap Triggered on 0b10 20 | . . . . 20 . . . . . . . . . . . . . . . Successful Hack 259 | . 25 . 55 35 12 . 14 60 . 14 33 11 . . . . . . . Disable Machine 195 | . . . 15 75 45 . . . . 15 . . . . . . . . 45 Anti-Garrison Action 2200 | . . . . 1150 . . 900 . . 50 . . 50 . 50 . . . . Destroy Structure 453 | . 1 . 9 99 23 . 24 30 . 20 4 16 5 . 2 . . . 220 Partial Spotted 90 | . . . . . . . . . . . 30 15 . . 30 15 . . . Lose Combat Pursuer 915 | . 105 . 60 15 30 . 45 45 . 90 75 60 150 . 45 . 60 . 135 Influence Decreases 7584 | 50 426 225 471 155 1593 918 425 1288 385 124 235 231 34 135 105 141 103 . 540 Entered New Map 3584 | . . 61 . 85 1013 718 135 676 285 54 135 111 34 135 45 81 16 . . Time Decay 2889 | 50 366 164 440 . 490 190 . 482 100 . 90 120 . . . 50 67 . 280 Lost Part 931 | . 60 . 31 50 70 10 190 130 . 30 10 . . . 60 10 20 . 260 Lost Ally 180 | . . . . 20 20 . 100 . . 40 . . . . . . . . . Squads Dispatched 31 | . 2 2 3 . 10 2 . 5 1 . 1 3 . . . 1 . . 1 Investigation 6 | . . 1 2 . 2 . . . . . . 1 . . . . . . . Extermination 5 | . . . . . . 1 . 2 1 . . 1 . . . . . . . Reinforcement 15 | . 2 1 . . 4 1 . 3 . . 1 1 . . . 1 . . 1 Assault 4 | . . . . . 4 . . . . . . . . . . . . . . Garrison 1 | . . . 1 . . . . . . . . . . . . . . . . Intercept . | . . . . . . . . . . . . . . . . . . . . Searches Triggered . | . . . . . . . . . . . . . . . . . . . . Construction Impeded 1 | . . . . . 1 . . . . . . . . . . . . . . Haulers Reinforced 1 | . . . . . . . . 1 . . . . . . . . . . . Active Scanning Responses . | . . . . . . . . . . . . . . . . . . . . Cargo Convoy Interrupts 2 | . . . . . . . . 1 . . . . . . . . . . 1 Stealth | -11 -10 -9 -8 -8 -8 -7 -7 -7 -6 -6 -6 -5 -5 -4 -4 -4 -4 -4 -3 --------- Run | Yrd Mat Mat Mat Gar Mat Fac Gar Fac Fac Gar Fac Fac Gar Fac Gar Fac Upp Upp Res Distress Signals 18 | . 3 1 4 . 5 . 1 1 . . . . . . . 1 . . 2 Communications Jammed 43 | . . . . . . . . 16 . . 10 . . . . . . . 17 Distress Signals 43 | . . . . . . . . 16 . . 10 . . . . . . . 17 Times Spotted 342 | . 32 8 33 26 51 6 33 23 2 14 14 6 15 . 21 9 11 . 38 Peak Tracking Total 18 | . 9 2 3 4 13 2 6 5 2 11 8 5 10 . 18 9 7 . 9 Tactical Retreats 28 | . 5 . 1 1 2 . 2 1 . 2 3 2 2 . 1 . 3 . 3 Traps | -11 -10 -9 -8 -8 -8 -7 -7 -7 -6 -6 -6 -5 -5 -4 -4 -4 -4 -4 -3 ------- Run | Yrd Mat Mat Mat Gar Mat Fac Gar Fac Fac Gar Fac Fac Gar Fac Gar Fac Upp Upp Res Traps Triggered 21 | . . . 1 4 1 . 7 1 . 3 . . 3 . 1 . . . . Indirectly . | . . . . . . . . . . . . . . . . . . . . Trap Hack Attempts . | . . . . . . . . . . . . . . . . . . . . Triggered . | . . . . . . . . . . . . . . . . . . . . Disarmed . | . . . . . . . . . . . . . . . . . . . . Reprogrammed . | . . . . . . . . . . . . . . . . . . . . Reused 2 | . . . . 2 . . . . . . . . . . . . . . . Traps Extracted . | . . . . . . . . . . . . . . . . . . . . Installed 2 | . . . . 2 . . . . . . . . . . . . . . . Triggered 2 | . . . . 2 . . . . . . . . . . . . . . . Most Traps Carried 2 | . . . . 2 . . . . . . . . . . . . . . . Machines | -11 -10 -9 -8 -8 -8 -7 -7 -7 -6 -6 -6 -5 -5 -4 -4 -4 -4 -4 -3 ---------- Run | Yrd Mat Mat Mat Gar Mat Fac Gar Fac Fac Gar Fac Fac Gar Fac Gar Fac Upp Upp Res Machines Disabled 27 | . . . 1 14 3 . 3 . . 2 . . 1 . . . . . 3 Max in Single Turn 2 | . . . 1 2 1 . 1 . . 1 . . 1 . . . . . 1 Garrison Access 1 | . . . . . . . . . . . 1 . . . . . . . . Garrison Relay 10 | . . . . 5 . . 3 . . 1 . . 1 . . . . . . Phase Generator 1 | . . . . 1 . . . . . . . . . . . . . . . Machines Repaired . | . . . . . . . . . . . . . . . . . . . . Machines Dismantled . | . . . . . . . . . . . . . . . . . . . . Machines Sabotaged . | . . . . . . . . . . . . . . . . . . . . Overloaded Fab Kills . | . . . . . . . . . . . . . . . . . . . . Hacking | -11 -10 -9 -8 -8 -8 -7 -7 -7 -6 -6 -6 -5 -5 -4 -4 -4 -4 -4 -3 --------- Run | Yrd Mat Mat Mat Gar Mat Fac Gar Fac Fac Gar Fac Fac Gar Fac Gar Fac Upp Upp Res Machines Accessed 48 | . 6 1 9 3 4 2 1 5 3 2 5 4 . 1 1 . . . 1 Terminals 35 | . 6 . 8 3 3 . 1 5 . 2 4 2 . . 1 . . . . Fabricators 3 | . . . . . . 1 . . 1 . . . . . . . . . 1 Repair Stations 3 | . . 1 . . 1 . . . . . . 1 . . . . . . . Recycling Units . | . . . . . . . . . . . . . . . . . . . . Scanalyzers 1 | . . . . . . . . . 1 . . . . . . . . . . Garrison Access 6 | . . . 1 . . 1 . . 1 . 1 1 . 1 . . . . . Total Hacks 122 | . 19 2 32 6 8 2 3 17 3 3 12 9 . 1 3 . . . 2 Successful 63 | . 10 1 19 3 5 2 1 7 2 1 5 6 . 1 . . . . . Failed 59 | . 9 1 13 3 3 . 2 10 1 2 7 3 . . 3 . . . 2 Catastrophic 7 | . . . 1 . . . 1 2 . . 2 . . . 1 . . . . Database Lockouts . | . . . . . . . . . . . . . . . . . . . . Manual 78 | . 14 2 20 . 7 . . 16 . . 11 8 . . . . . . . Terminals 106 | . 19 . 31 6 7 . 3 17 . 3 11 6 . . 3 . . . . Fabricators 4 | . . . . . . 1 . . 1 . . . . . . . . . 2 Repair Stations 5 | . . 2 . . 1 . . . . . . 2 . . . . . . . Recycling Units . | . . . . . . . . . . . . . . . . . . . . Scanalyzers 1 | . . . . . . . . . 1 . . . . . . . . . . Garrison Access 6 | . . . 1 . . 1 . . 1 . 1 1 . 1 . . . . . Terminal Hacks 14 | . 2 . 6 3 1 . 1 . . 1 . . . . . . . . . Prototype ID Bank 1 | . . . 1 . . . . . . . . . . . . . . . . Open Door 1 | . . . . 1 . . . . . . . . . . . . . . . Level Access Points 1 | . . . . . 1 . . . . . . . . . . . . . . Branch Access Points 1 | . 1 . . . . . . . . . . . . . . . . . . Emergency Access Points 2 | . . . . 1 . . 1 . . . . . . . . . . . . Terminal Index 1 | . . . 1 . . . . . . . . . . . . . . . . Locate Traps 1 | . 1 . . . . . . . . . . . . . . . . . . Hauler Manifests 2 | . . . 2 . . . . . . . . . . . . . . . . Registered Prototypes 1 | . . . 1 . . . . . . . . . . . . . . . . Zone Layout 1 | . . . 1 . . . . . . . . . . . . . . . . Patrol Navigation 2 | . . . . 1 . . . . . 1 . . . . . . . . . Fabricator Hacks 2 | . . . . . . 1 . . 1 . . . . . . . . . . Network Status 2 | . . . . . . 1 . . 1 . . . . . . . . . . Repair Station Hacks . | . . . . . . . . . . . . . . . . . . . . Recycling Unit Hacks . | . . . . . . . . . . . . . . . . . . . . Scanalyzer . | . . . . . . . . . . . . . . . . . . . . Garrison Access Hacks 6 | . . . 1 . . 1 . . 1 . 1 1 . 1 . . . . . Unlock Access 5 | . . . 1 . . 1 . . 1 . . 1 . 1 . . . . . Seal Access 1 | . . . . . . . . . . . 1 . . . . . . . . Unauthorized Hacks 41 | . 8 1 12 . 4 . . 7 . . 4 5 . . . . . . . Terminals 38 | . 8 . 12 . 3 . . 7 . . 4 4 . . . . . . . Botnet 16 | . 4 . 6 . 1 . . 2 . . 1 2 . . . . . . . Skim 22 | . 4 . 6 . 2 . . 5 . . 3 2 . . . . . . . Fabricators . | . . . . . . . . . . . . . . . . . . . . Repair Stations 3 | . . 1 . . 1 . . . . . . 1 . . . . . . . Patch 3 | . . 1 . . 1 . . . . . . 1 . . . . . . . Recycling Units . | . . . . . . . . . . . . . . . . . . . . Scanalyzers . | . . . . . . . . . . . . . . . . . . . . Garrison Access . | . . . . . . . . . . . . . . . . . . . . Data Cores Recovered 2 | . . . 1 . . . . . . . 1 . . . . . . . . Used 2 | . . . 1 . . . . . . . 1 . . . . . . . . Hacking Detections 36 | . 5 1 7 3 2 . 1 4 2 2 4 2 . 1 1 . . . 1 Full Trace Events 3 | . . . 1 . . . 1 . . . . . . . 1 . . . . Feedback Events . | . . . . . . . . . . . . . . . . . . . . Feedback Blocked . | . . . . . . . . . . . . . . . . . . . . Robot Schematics Acquired . | . . . . . . . . . . . . . . . . . . . . Robots Built . | . . . . . . . . . . . . . . . . . . . . Authchips . | . . . . . . . . . . . . . . . . . . . . Time . | . . . . . . . . . . . . . . . . . . . . Total Robot Build Rating . | . . . . . . . . . . . . . . . . . . . . Part Schematics Acquired . | . . . . . . . . . . . . . . . . . . . . Parts Built . | . . . . . . . . . . . . . . . . . . . . Authchips . | . . . . . . . . . . . . . . . . . . . . Time . | . . . . . . . . . . . . . . . . . . . . Total Part Build Rating . | . . . . . . . . . . . . . . . . . . . . Parts Repaired . | . . . . . . . . . . . . . . . . . . . . Time . | . . . . . . . . . . . . . . . . . . . . Parts Recycled . | . . . . . . . . . . . . . . . . . . . . Recycled Matter . | . . . . . . . . . . . . . . . . . . . . Retrieved Matter . | . . . . . . . . . . . . . . . . . . . . Retrieved Components . | . . . . . . . . . . . . . . . . . . . . Parts Scanalyzed . | . . . . . . . . . . . . . . . . . . . . Part Schematics Acquired . | . . . . . . . . . . . . . . . . . . . . Parts Damaged . | . . . . . . . . . . . . . . . . . . . . Bothacking | -11 -10 -9 -8 -8 -8 -7 -7 -7 -6 -6 -6 -5 -5 -4 -4 -4 -4 -4 -3 ------------ Run | Yrd Mat Mat Mat Gar Mat Fac Gar Fac Fac Gar Fac Fac Gar Fac Gar Fac Upp Upp Res Used RIF Installer 3 | . . . . 1 . . 1 . . . . . . . 1 . . . . Signal Jammer 1 | . . . . . . . 1 . . . . . . . . . . . . Program Shield 1 | . . . . . . . . . . . . . . . 1 . . . . Robots Hacked 17 | . . . . . . 2 6 4 2 2 . 1 . . . . . . . Non-combat 5 | . . . . . . . . 2 2 . . 1 . . . . . . . Combat 12 | . . . . . . 2 6 2 . 2 . . . . . . . . . Robot Hacks Applied 19 | . . . . . . 3 6 5 2 2 . 1 . . . . . . . generate_echo 1 | . . . . . . . . . 1 . . . . . . . . . . deconstruct_machine 1 | . . . . . . . . . 1 . . . . . . . . . . map_walls 1 | . . . . . . . . . . . . 1 . . . . . . . map_route 1 | . . . . . . . . 1 . . . . . . . . . . . reboot_system 1 | . . . . . . 1 . . . . . . . . . . . . . go_dormant 3 | . . . . . . 1 1 1 . . . . . . . . . . . overwrite_iff 3 | . . . . . . . . 1 . 2 . . . . . . . . . streamctrl_low 1 | . . . . . . . . 1 . . . . . . . . . . . formatsys_high 7 | . . . . . . 1 5 1 . . . . . . . . . . . Relay Couplers Released 36 | . . . . 17 . . 12 . . 3 . . 4 . . . . . . Machine Destruction 36 | . . . . 17 . . 12 . . 3 . . 4 . . . . . . Attached 10 | . . . . . . 1 4 3 . . . . . 1 . . . . 1 Fabnet Peak Effective % . | . . . . . . . . . . . . . . . . . . . . Robots Rewired 2 | . . . . 2 . . . . . . . . . . . . . . . Allies Hacked . | . . . . . . . . . . . . . . . . . . . . Hacks Repelled . | . . . . . . . . . . . . . . . . . . . . Allies | -11 -10 -9 -8 -8 -8 -7 -7 -7 -6 -6 -6 -5 -5 -4 -4 -4 -4 -4 -3 -------- Run | Yrd Mat Mat Mat Gar Mat Fac Gar Fac Fac Gar Fac Fac Gar Fac Gar Fac Upp Upp Res Total Allies 13 | . . . . 2 . 1 5 3 . 2 . . . . . . . . . Largest Group 3 | . . . . 2 1 1 3 2 . . . . . . . . . . . Highest-Rated Group 51 | . . . . 51 20 16 48 32 . . . . . . . . . . . Highest-Rated Ally 32 | . . . . 31 20 16 32 32 . . . . . . . . . . . Total Orders . | . . . . . . . . . . . . . . . . . . . . Ally Attacks 75 | . . . . 9 2 16 38 9 . 1 . . . . . . . . . Total Damage 1091 | . . . . 216 54 209 479 133 . . . . . . . . . . . Kills 8 | . . . . 3 . 1 3 1 . . . . . . . . . . . Allies Corrupted 1 | . . . . . . . . . . 1 . . . . . . . . . Allies Melted . | . . . . . . . . . . . . . . . . . . . . Intel | -11 -10 -9 -8 -8 -8 -7 -7 -7 -6 -6 -6 -5 -5 -4 -4 -4 -4 -4 -3 ------- Run | Yrd Mat Mat Mat Gar Mat Fac Gar Fac Fac Gar Fac Fac Gar Fac Gar Fac Upp Upp Res Active Infowar (turns) 4986 | 719 1831 42 966 . . . . 87 188 188 196 256 92 11 72 106 149 . 83 Optics 686 | . . . . . . . . . . . . 256 92 11 72 106 149 . . Sensors 741 | . . . . . . . . . . . . 255 92 11 72 79 149 . 83 Structural 1147 | . . . . . . . . . 188 188 196 145 92 11 72 106 149 . . Seismic 3645 | 719 1831 42 966 . . . . 87 . . . . . . . . . . . Robot Analysis Total . | . . . . . . . . . . . . . . . . . . . . Derelict Logs Recovered . | . . . . . . . . . . . . . . . . . . . . Drone Launches . | . . . . . . . . . . . . . . . . . . . . Drone Recoveries . | . . . . . . . . . . . . . . . . . . . . Exploration | -11 -10 -9 -8 -8 -8 -7 -7 -7 -6 -6 -6 -5 -5 -4 -4 -4 -4 -4 -3 ------------- Run | Yrd Mat Mat Mat Gar Mat Fac Gar Fac Fac Gar Fac Fac Gar Fac Gar Fac Upp Upp Res Turns Passed 15621 | 825 1831 443 1919 2965 1282 380 2738 1250 207 188 198 256 92 11 72 106 152 10 696 Spaces Moved 8413 | 197 687 218 764 1091 374 170 831 445 419 346 598 788 239 29 230 152 249 31 555 Core 192 | 3 . . . . 1 . . 9 . . . . . . . 15 . . 164 Treads 4001 | 194 637 218 764 1091 355 . 603 49 . . . . . . . . . . 90 Legs 327 | . . . . . . . 29 224 . . . . . . . . . . 74 Wheels 600 | . 50 . . . 18 170 199 163 . . . . . . . . . . . Hover . | . . . . . . . . . . . . . . . . . . . . Flight 3293 | . . . . . . . . . 419 346 598 788 239 29 230 137 249 31 227 Fastest Speed 21 | 50 130 160 160 240 190 190 175 125 23 23 26 21 21 21 21 27 30 30 28 Average Speed 145 | 158 224 160 206 240 262 190 285 209 25 23 26 22 21 21 23 35 30 30 77 Slowest Speed 1650 | 160 320 160 240 240 1650 190 560 1600 233 26 26 26 21 21 29 100 30 30 350 Overloaded Moves . | . . . . . . . . . . . . . . . . . . . . Propulsion Burnouts . | . . . . . . . . . . . . . . . . . . . . Robots Hopped 14 | . . . . . . . . . 1 . . 1 4 . 5 . 3 . . Potential Cave-ins . | . . . . . . . . . . . . . . . . . . . . Cave-ins Triggered . | . . . . . . . . . . . . . . . . . . . . Exploration Rate (%) 31 | 8 96 22 59 99 34 5 73 10 10 31 23 25 24 2 35 9 45 11 9 Regions Visited 19 Branch Regions 2 Pre-discovered Areas 1 | . . . . . . . . 1 . . . . . . . . . . . Known Exits Taken 11 | . . . 1 . 1 1 . 1 1 . 1 1 . 1 . 1 1 1 . Unknown Exits Taken 3 | 1 1 1 . . . . . . . . . . . . . . . . . Scrap Searched . | . . . . . . . . . . . . . . . . . . . . Spaces Dug 25 | . . . . . . . . 7 . 5 4 8 . . 1 . . . . Terrain Destroyed 359 | . . . 3 149 31 . 18 28 . 5 4 8 . . 1 . . . 112 Melee 18 | . . . . . . . . . . 5 4 8 . . 1 . . . . Projectile 5 | . . . 3 1 . . . . . . . . . . . . . . 1 AOE 336 | . . . . 148 31 . 18 28 . . . . . . . . . . 111 Terrain Rammed . | . . . . . . . . . . . . . . . . . . . . Walls Destroyed . | . . . . . . . . . . . . . . . . . . . . Machines Disabled . | . . . . . . . . . . . . . . . . . . . . Actions | -11 -10 -9 -8 -8 -8 -7 -7 -7 -6 -6 -6 -5 -5 -4 -4 -4 -4 -4 -3 --------- Run | Yrd Mat Mat Mat Gar Mat Fac Gar Fac Fac Gar Fac Fac Gar Fac Gar Fac Upp Upp Res Total 10796 | 645 814 271 990 1338 565 211 1075 686 519 406 616 832 270 34 235 203 322 30 734 Wait 1228 | 408 20 20 80 105 65 19 109 126 75 12 4 16 15 1 3 44 77 . 29 Move 8374 | 196 686 217 764 1090 373 169 830 444 417 345 597 785 231 29 222 151 243 30 555 Hop 9 | . . . . . . . . . 1 . . 1 3 . 2 . 2 . . Pick Up 113 | 3 16 4 27 10 13 2 14 11 3 . 1 . . 1 . 1 . . 7 Fast Attach 88 | 7 5 2 7 2 9 1 9 11 3 1 1 8 . . . 3 . . 19 Attach 70 | . 2 2 9 3 3 3 13 11 8 . . 2 . 1 . 1 . . 12 Detach 15 | . 2 1 . . . . 1 2 1 . . 2 . . . . . . 6 Swap 41 | . 1 1 6 8 13 1 8 1 . . . . . 1 . . . . 1 Drop 96 | . 1 3 28 9 21 . 1 11 7 1 1 2 . 1 . 3 . . 7 Fire 556 | 31 80 21 69 76 68 7 69 60 3 2 . 2 . . . . . . 68 Melee 76 | . . . . . . 8 11 . 1 23 12 14 3 . 4 . . . . Ram 27 | . . . . . . . . . . . . . . . . . . . 27 Kick 12 | . . . . . . . . 9 . . . . . . . . . . 3 Crush 1 | . 1 . . . . . . . . . . . . . . . . . . Escape Stasis 56 | . . . . 4 . . 8 . . 22 . . 18 . 4 . . . . Rewire 32 | . . . . 29 . 1 2 . . . . . . . . . . . . Trap 2 | . . . . 2 . . . . . . . . . . . . . . . Miscellaneous . | . . . . . . . . . . . . . . . . . . . . Route ------- -11/Scrapyard -10/Materials (discovered 5 exits: *Mat x3 / *Min x2) -9/Materials -8/Materials (discovered 2 exits: *Fac / Gar) -8/Garrison (discovered 3 exits: *Mat x3) -8/Materials (discovered 3 exits: *Fac x3) -7/Factory (discovered 7 exits: Fac x3 / Sto / Low x2 / Gar) -7/Garrison (discovered 3 exits: *Fac x3) -7/Factory (discovered 5 exits: *Fac x3 / Sto / Low) -6/Factory (discovered 4 exits: *Fac x3 / Gar) -6/Garrison -6/Factory -5/Factory (discovered 2 exits: Upp / Gar) -5/Garrison -4/Factory -4/Garrison -4/Factory -4/Upper Caves -4/Upper Caves -3/Research History --------- Turn | Location | Event 8 | -11/Scrapyard | Discovered new exit (range 16) 826 | -11/Scrapyard | Entered Materials 827 | -10/Materials | Build established: Mutant 1245 | -10/Materials | Discovered new exit (range 7) 1456 | -10/Materials | Core integrity fell below 50% 1526 | -10/Materials | Derelicts attacked the area 1556 | -10/Materials | Discovered new exit (range 8) 1667 | -10/Materials | Identified exit to Mines 1830 | -10/Materials | Discovered new exit (range 10) 1883 | -10/Materials | Build established: Scavenger-Mutant 2408 | -10/Materials | Discovered new exit (range 11) 2657 | -10/Materials | Entered another Materials area 2657 | -9/Materials | Evolved 2 slots: Propulsion x1, Utility x1 2947 | -9/Materials | Discovered new exit (range 16) 3100 | -9/Materials | Entered another Materials area 3100 | -8/Materials | Evolved 2 slots: Propulsion x1, Weapon x1 3243 | -8/Materials | Lost 5 parts (1p2n1u1w) 3512 | -8/Materials | Build established: Scavenger-Gunner 4309 | -8/Materials | Build established: Gunner 4407 | -8/Materials | Discovered new exit (range 4) 4681 | -8/Materials | Learned location of 2 exits from Factory 4739 | -8/Materials | Learned location of 2 exits from Factory 4786 | -8/Materials | Learned 4 Recycling zone layouts 4825 | -8/Materials | Learned 12 Factory zone layouts 4852 | -8/Materials | Learned Storage emergency access door positions 4870 | -8/Materials | Learned Storage stockpile data 4898 | -8/Materials | Learned 2 Storage zone layouts 4937 | -8/Materials | Learned Recycling recycling unit intel 4953 | -8/Materials | Garrison activated, responded to threat 5017 | -8/Materials | Identified exit to Garrison 5019 | -8/Materials | Entered Garrison 5067 | -8/Garrison | Triggered checkpoint 5110 | -8/Garrison | Garrison Relay disabled 5504 | -8/Garrison | Build established: Scavenger-Gunner 5514 | -8/Garrison | Triggered checkpoint 5541 | -8/Garrison | Triggered checkpoint 5627 | -8/Garrison | Phase Generator disabled 5699 | -8/Garrison | Installed Relay Interface Framework 5883 | -8/Garrison | Triggered checkpoint 5929 | -8/Garrison | Garrison Relay disabled 6077 | -8/Garrison | Discovered new exit (range 10) 6308 | -8/Garrison | Triggered checkpoint 6495 | -8/Garrison | Triggered checkpoint 6553 | -8/Garrison | Garrison Relay disabled 6616 | -8/Garrison | Triggered checkpoint 6663 | -8/Garrison | Discovered new exit (range 13) 7065 | -8/Garrison | Triggered checkpoint 7126 | -8/Garrison | Garrison Relay disabled 7188 | -8/Garrison | Discovered new exit (range 11) 7272 | -8/Garrison | Garrison Relay disabled 7984 | -8/Garrison | Entered Materials 7984 | -8/Materials | Accompanied by 1 ally 8095 | -8/Materials | Identified exit to Factory 8784 | -8/Materials | First assault squad dispatched 8900 | -8/Materials | Core integrity fell below 50% 8915 | -8/Materials | Destroyed 18 combat bots 8945 | -8/Materials | Lost 7 parts (1p4n2u) 9266 | -8/Materials | Entered Factory 9266 | -7/Factory | Evolved 2 slots: Utility x1, Weapon x1 9267 | -7/Factory | Identified exit to Factory 9267 | -7/Factory | Identified exit to Storage 9267 | -7/Factory | Identified exit to Lower Caves 9357 | -7/Factory | Build established: Gunner 9641 | -7/Factory | Identified exit to Garrison 9646 | -7/Factory | Entered Garrison 9646 | -7/Garrison | Accompanied by 1 ally 9734 | -7/Garrison | Triggered checkpoint 9772 | -7/Garrison | Garrison Relay disabled 9896 | -7/Garrison | Triggered checkpoint 9950 | -7/Garrison | Lost 3 allies 9964 | -7/Garrison | Lost 4 parts (1p2n1u) 10068 | -7/Garrison | Build established: Bothacker-Gunner 10094 | -7/Garrison | Discovered new exit (range 12) 10150 | -7/Garrison | Triggered checkpoint 10184 | -7/Garrison | Lost 6 parts (1p3n2w) 10400 | -7/Garrison | Triggered checkpoint 10516 | -7/Garrison | Build established: Gunner 10568 | -7/Garrison | Garrison Relay disabled 11078 | -7/Garrison | Build established: Bothacker-Gunner 11168 | -7/Garrison | Expanded RIF knowledge: Signal Jamming 11242 | -7/Garrison | Triggered checkpoint 11281 | -7/Garrison | Lost 3 parts (1n2w) 11295 | -7/Garrison | Discovered new exit (range 12) 11534 | -7/Garrison | Build established: Bothacker-Mutant 11586 | -7/Garrison | Triggered checkpoint 11843 | -7/Garrison | Garrison Relay disabled 11875 | -7/Garrison | Build established: Bothacker-Gunner 11959 | -7/Garrison | Discovered new exit (range 8) 12384 | -7/Garrison | Entered Factory 12913 | -7/Factory | Discovered exit to Factory (range 8) 12987 | -7/Factory | Learned location of Extension (-4) 13051 | -7/Factory | Learned Extension stockpile data 13100 | -7/Factory | Lost 3 parts (2n1w) 13202 | -7/Factory | Learned 2 Extension zone layouts 13233 | -7/Factory | Learned Extension emergency access door positions 13272 | -7/Factory | Learned location of 1 exit from Cetus 13291 | -7/Factory | Cargo convoy interrupted 13318 | -7/Factory | Core integrity fell below 50% 13412 | -7/Factory | Lost 3 parts (3n) 13634 | -7/Factory | Entered another Factory area 13634 | -6/Factory | Evolved 2 slots: Propulsion x2 13635 | -6/Factory | Identified exit to Factory 13778 | -6/Factory | Spotted B-75 Beast 13841 | -6/Factory | Identified exit to Garrison 13841 | -6/Factory | Entered Garrison 13942 | -6/Garrison | Garrison Relay disabled 13993 | -6/Garrison | Triggered checkpoint 14006 | -6/Garrison | Discovered new exit (range 12) 14029 | -6/Garrison | Identified exit to Factory 14029 | -6/Garrison | Entered Factory 14043 | -6/Factory | Lost 3 parts (1p1n1w) 14217 | -6/Factory | Discovered exit to Factory (range 6) 14227 | -6/Factory | Entered another Factory area 14227 | -5/Factory | Evolved 2 slots: Utility x2 14228 | -5/Factory | Identified exit to Upper Caves 14479 | -5/Factory | Identified exit to Garrison 14483 | -5/Factory | Entered Garrison 14507 | -5/Garrison | Triggered checkpoint 14522 | -5/Garrison | Garrison Relay disabled 14561 | -5/Garrison | Triggered checkpoint 14575 | -5/Garrison | Discovered new exit (range 3) 14575 | -5/Garrison | Identified exit to Factory 14575 | -5/Garrison | Entered Factory 14575 | -4/Factory | Evolved 2 slots: Propulsion x1, Utility x1 14586 | -4/Factory | Identified exit to Garrison 14586 | -4/Factory | Entered Garrison 14597 | -4/Garrison | Expanded RIF knowledge: Program Shield 14609 | -4/Garrison | Spotted B-86 Titan 14655 | -4/Garrison | Discovered new exit (range 13) 14658 | -4/Garrison | Identified exit to Factory 14658 | -4/Garrison | Entered Factory 14687 | -4/Factory | Lost 6 parts (1p3n2w) 14751 | -4/Factory | Discovered new exit (range 20) 14764 | -4/Factory | Identified exit to Upper Caves 14764 | -4/Factory | Entered Upper Caves 14805 | -4/Upper Caves | Encountered a Warlord checkpoint 14913 | -4/Upper Caves | Discovered new exit (range 10) 14914 | -4/Upper Caves | System corruption reached 10% 14916 | -4/Upper Caves | Identified exit to Upper Caves 14916 | -4/Upper Caves | Entered another Upper Caves area 14917 | -4/Upper Caves | Encountered a Warlord checkpoint 14925 | -4/Upper Caves | Discovered new exit (range 3) 14925 | -4/Upper Caves | Identified exit to Research 14926 | -4/Upper Caves | Entered Research 14926 | -3/Research | Evolved 2 slots: Propulsion x1, Utility x1 14944 | -3/Research | Lost 3 parts (3u) 14975 | -3/Research | Found Prototype Launcher 14975 | -3/Research | Identified Mni. Smartbomb Launcher 14979 | -3/Research | Found Mni. Smartbomb Launcher 15071 | -3/Research | Lost 5 parts (1n4u) 15143 | -3/Research | System corruption reached 10% 15457 | -3/Research | Core integrity fell below 50% 15480 | -3/Research | System corruption reached 30% 15499 | -3/Research | Lost 16 parts (1p7n1u7w) 15534 | -3/Research | Core integrity fell below 20% 15556 | -3/Research | Build established: Mutant 15619 | -3/Research | Cargo convoy interrupted 15619 | -3/Research | Spotted Executioner 15619 | -3/Research | Spotted Striker 15622 | -3/Research | Destroyed by H-77 Assassin with Coil Gun Last Messages --------------- area. 15614_ Broken Gravity Neutralizer destroyed. 15614_ Knocked back. 15614_ K-01 Serf system corrupted by crushing effect. 15615_ K-01 Serf system terminally corrupted. 15616_ A-27 Freighter sends out distress signal. 15618_ C-30 ARC bursts open, deploying its payload. 15618_ Executioner unfolds itself. 15618_ H-77 Assassin unfolds itself. 15618_ Striker unfolds itself. 15618_ M-36 Artificer unfolds itself. 15619_ ALERT: Cargo convoy interrupted, initiating access lockdown. 15619_ Slammed into I-47 Archangel. 15620_ Acquired 6 matter. 15620_ K-01 Serf collects debris. 15620_ Slammed into A-27 Freighter. 15621_ K-01 Serf collects debris. 15621_ Slammed into H-77 Assassin. 15622_ Slug penetrates Wall. 15622_ Penetrated by Slug. Map ----- +----------------------------------------------------+ | ??????????????# """" """ """ | | ??????????????# | | ??????????##### | | ?????????"" ## | | ?????????Y" #####+#############+######+########## | | ?????#?? # #???# # # | | ?????# # #???# # # | | ?????# # """" #???# """ # # | | ?????# """ # ""R"" #???# Y" # " + | | ?????# """ # "" "" #???# """ #"S # | | ?????# """ # #???# #""" #= | | ?????# # #???# # "" # | | ?????# # #???# # # | | ?????# #?#########???########### # | | ????########+######"###########################+## | | ????# + H | | ????# # | | ????# # ###+"##################+####+####### | | ????# # # % #????????????? # =# | | ????# # / #??????????? # ## | | ????# # #### #??????????# # ### | | ????# # #??# #??????????# # #?# | | ????# # #??# % #??????????# # #?# | | ????# # #??# !#??????????# # #?# | | ????###### #####"##############################?## | | ????# / w %H m iKh@EA/k ????????? | | ????# #+###### T#####;####Ck ????????? | | ????# # ????####???###?????????k ????????? | | ????# # ?????????????????????????????????????? | | ????# # ?????????????????????????????????????? | | ????# # ?????????????????????????????????????? | | ????# #! ????????????????????????????????????? | | ????# # ????????????????????????????????????? | | ????# ! ####????????????????????????????????????? | | ????######???????????????????????????????????????? | | ?????????????????????????????????????????????????? | | ?????????????????????????????????????????????????? | | ?????????????????????????????????????????????????? | | ?????????????????????????????????????????????????? | | ?????????????????????????????????????????????????? | | ?????????????????????????????????????????????????? | | ?????????????????????????????????????????????????? | | ?????????????????????????????????????????????????? | | ?????????????????????????????????????????????????? | | ?????????????????????????????????????????????????? | | ?????????????????????????????????????????????????? | | ?????????????????????????????????????????????????? | | ?????????????????????????????????????????????????? | | ?????????????????????????????????????????????????? | | ?????????????????????????????????????????????????? | +----------------------------------------------------+ Best States ------------- Heat Dissipation 73 Energy Generation 44 Energy Capacity 290 Matter Stores 300 Matter Capacity 300 Sight Range 22 Robot Scan Range 15 Terrain Scan Density 10 Power Amplification 30 Additional Mass Support 12 Armor Coverage 225 Evasion (%) 76 Targeting Accuracy 8 Recoil Reduction 4 Relay Coupler Types 3 Relay Coupler Value 53 Item Schematics ----------------- None Robot Schematics ------------------ None Fabricated ------------ Nothing Repaired ---------- Nothing Alien Tech Used ----------------- None Achievements -------------- Factory Defaults Challenges ------------ None Game ------ Seed HelicalTractorField Manual? 0 Play Time 01:29:38 Cumulative 225.4 hours Start 2025.08.01 @ 07:16:45 End 2025.08.03 @ 15:38:21 Sessions 5 Manual Loads 0 Difficulty Rogue Special Mode None Game No. 195 Rogue 195 Adventurer 0 Explorer 0 Win Type - Total 12 Types 6/0/4/2/0/0/0/0/0/0 Lore% 78 Gallery% 73 Achievement% 68 Wizard Run 0 Options --------- Layout 1 ASCII 0 Keyboard 0 Movement Mouse Keybinds 0 Fullscreen 1 Font 32/SmallcapsGlow Map View 77x35 Zoom Use 0% Tactical HUD 1 Map Filters NONE Filters NONE Steam 1 RUN: 581394dd-f77d-421d-b9a6-3139e6c5dc8d